Cogmind - Beta 13 @@@ ROGUE MODE // 2024.04.30 @ 09:14:33 Player: Millea Result: Destroyed by G-47 Trooper with Particle Gun Performance ------------- Evolutions (3) 1500 Regions Visited (15) 3000 Robots Destroyed (165) 825 Value Destroyed (6321) 6321 Prototype IDs (35) 700 Alien Tech Used (0) 0 Bonus (1331) 1331 TOTAL SCORE: 13677 Bonus ------- High Alert Combat Kills 181 Follower Combat Kills 70 Entered Garrisons 800 Aligned with FarCom 300 Friendly Fire -20 Cogmind --------- Core Integrity 0/700 Matter 37/300 Energy 159/290 System Corruption 6% Temperature Cool (9) Movement Rolling (115) Ox1 Location -7/Factory Parts ------- > --- POWER (1) -------- Reinforced Deuterium Engine > --- PROPULSION (4) --- Armored Huge Wheel Armored Huge Wheel > --- UTILITY (5) ------ Improved Cooling System Advanced Cooling System Huge Storage Unit Core Analyzer Improved Kinecellerator > --- WEAPON (3) ------- Gauss Rifle Mini Assault Cannon > --- INVENTORY (25) --- Armored Huge Wheel Armored Huge Wheel Superbattery (946) Core Analyzer Transmission Jammer Medium Armor Plating Improved Medium Armor Plating Graphene Brace Improved Shield Generator System Shield Heavy EM Shotgun EM Pulse Cannon Improved EM Pulse Cannon Advanced Plasma Cannon Minigun Gauss Rifle Flak Gun Mini Assault Cannon Improved Datajack Peak State ------------ > --- POWER ------------ Light Nuclear Core > --- PROPULSION ------- Armored Huge Wheel Armored Huge Wheel > --- UTILITY ---------- Improved Coolant Injector Huge Storage Unit Core Analyzer Advanced Shield Generator Advanced Hacking Suite > --- WEAPON ----------- Gatling Laser Improved EM Pulse Cannon Advanced Plasma Cannon > --- INVENTORY -------- Improved Ion Engine Armored Huge Wheel Armored Huge Wheel Improved Heat Sink Advanced Cooling System Superbattery Armor Integrity Analyzer Armor Integrity Analyzer Improved Kinecellerator Improved Propulsion Shielding Graphene Brace Improved EM Pulse Cannon Advanced Plasma Cannon Shotgun Enhanced Autogun KE Penetrator Improved Datajack [Rating: 64] Favorites ----------- Power Light Nuclear Core Engine Ion Engine Power Core Light Nuclear Core Propulsion Armored Huge Wheel Treads Light Treads Wheel Armored Huge Wheel Utility Improved Heat Sink Device Improved Heat Sink Storage Large Storage Unit Processor Core Analyzer Hackware Advanced Hacking Suite Protection Medium Armor Plating Weapon Advanced Beam Cannon Energy Gun Arc Projector Energy Cannon Advanced Beam Cannon Ballistic Gun Enhanced Autogun Ballistic Cannon Mini Assault Cannon Build | -11 -10 -9 -9 -9 -8 -8 -8 -8 -8 -8 -7 -7 -7 -7 -7 ------- Run | Yrd Mat Mat Min Exi Min Mat Gar Mat Gar Mat Fac Gar Fac Gar Fac Slots Evolved 6 | . . 2 . . . 2 . . . . 2 . . . . Power . | . . . . . . . . . . . . . . . . Propulsion 2 | . . . . . . 1 . . . . 1 . . . . Utility 3 | . . 2 . . . . . . . . 1 . . . . Weapon 1 | . . . . . . 1 . . . . . . . . . Parts Attached 107 | 6 2 10 . . 2 19 15 4 1 10 5 10 2 3 18 Power 10 | 1 . . . . . 2 1 . 1 1 . 2 . . 2 Engine 7 | 1 . . . . . 2 1 . 1 . . 1 . . 1 Core 3 | . . . . . . . . . . 1 . 1 . . 1 Reactor . | . . . . . . . . . . . . . . . . Propulsion 14 | 2 . 1 . . . 4 2 1 . . 1 1 . 1 1 Treads 5 | 2 . 1 . . . 1 1 . . . . . . . . Leg . | . . . . . . . . . . . . . . . . Wheel 9 | . . . . . . 3 1 1 . . 1 1 . 1 1 Hover . | . . . . . . . . . . . . . . . . Flight . | . . . . . . . . . . . . . . . . Utility 36 | 1 2 4 . . 2 3 5 3 . 3 2 3 1 . 7 Device 21 | . 2 2 . . 1 3 4 1 . . 1 2 . . 5 Storage 4 | 1 . 2 . . . . . . . 1 . . . . . Processor 3 | . . . . . 1 . . . . . 1 . . . 1 Hackware 2 | . . . . . . . . 2 . . . . . . . Protection 6 | . . . . . . . 1 . . 2 . 1 1 . 1 Artifact . | . . . . . . . . . . . . . . . . Weapon 47 | 2 . 5 . . . 10 7 . . 6 2 4 1 2 8 Energy Gun 13 | 1 . 2 . . . 6 1 . . . 1 . 1 . 1 Energy Cannon 16 | . . 2 . . . 2 2 . . 5 1 2 . . 2 Ballistic Gun 15 | 1 . 1 . . . 2 3 . . 1 . 2 . 2 3 Ballistic Cannon 3 | . . . . . . . 1 . . . . . . . 2 Launcher . | . . . . . . . . . . . . . . . . Special Weapon . | . . . . . . . . . . . . . . . . Impact Weapon . | . . . . . . . . . . . . . . . . Slashing Weapon . | . . . . . . . . . . . . . . . . Piercing Weapon . | . . . . . . . . . . . . . . . . Special Melee Weapon . | . . . . . . . . . . . . . . . . Unidentified Prototypes 4 | . . 1 . . . . 1 . . . . . . . 2 Parts Lost 40 | . . . . . . 6 9 . 1 4 1 9 2 2 6 Power 7 | . . . . . . . 1 . 1 1 . 2 . . 2 Propulsion 7 | . . . . . . 1 2 . . 1 . 1 . 1 1 Utility 10 | . . . . . . 1 2 . . 1 . 3 1 . 2 Weapon 16 | . . . . . . 4 4 . . 1 1 3 1 1 1 Highest Loss Streak 5 | . . . . . . 3 4 . 1 2 1 5 1 2 4 To Critical Strikes 1 | . . . . . . . . . . . . . . 1 . Average Slot Usage (%) 88 | . 98 87 100 100 97 89 89 89 89 80 83 82 83 83 83 Engine 6 | . 14 11 11 11 11 9 9 9 8 5 . 1 . . . Core 2 | . . . . . . . . . . 3 7 4 7 7 6 Treads 8 | . 28 21 22 22 22 5 7 9 9 1 . . . . . Wheel 9 | . . . . . . 12 10 8 9 9 15 14 15 15 14 Device 20 | . 12 21 33 33 28 18 23 13 18 9 15 13 15 15 18 Storage 8 | . 14 11 11 11 11 9 9 9 9 9 7 7 7 7 7 Processor 3 | . . . . . 2 7 . . . . 6 7 7 7 7 Hackware 2 | . . . . . . . . 13 9 9 7 7 5 . . Protection 1 | . . . . . . . 2 . . 7 . 1 1 7 4 Energy Gun 2 | . 14 4 . . . 13 . . . . . 2 5 2 . Energy Cannon 11 | . . 12 22 22 22 10 8 9 9 15 22 12 7 1 . Ballistic Gun 8 | . 14 4 . . . 2 13 18 18 10 . 6 8 18 13 Ballistic Cannon 1 | . . . . . . . 4 . . . . . . . 7 Naked Turns . | . . . . . . . . . . . . . . . . Heaviest Build 114 | 13 14 55 36 36 36 42 60 56 51 111 114 111 112 112 112 Greatest Support 56 | 40 40 40 40 40 40 44 44 28 28 28 56 56 56 56 56 Greatest Overweight (x) 3 | . . 1 . . . 1 2 1 2 3 2 1 1 1 3 Average Overweight (x) . | . . . . . . . 1 1 1 2 1 1 1 1 1 Largest Inventory Capacity 25 | 8 8 20 15 15 15 15 15 15 15 25 25 25 25 25 25 Average Capacity 18 | 6 8 11 15 15 15 15 15 15 15 22 25 25 25 25 25 Most Carried 25 | 3 2 8 8 9 11 15 15 15 15 16 19 19 16 15 25 Average Carried 14 | 1 2 5 8 8 9 14 12 14 14 14 16 15 15 13 23 Final Capacity 25 | 8 8 15 15 15 15 15 15 15 15 25 25 25 25 25 25 Final Carried 21 | 2 2 8 8 9 11 15 15 14 15 14 19 16 15 12 21 Class Distribution -------------------- 46% | Skirmisher 28% | Mutant 8% | Tank 6% | Gunner 5% | Scavenger-Skirmisher 3% | Hacker-Skirmisher Dominant Class ---------------- Mutant | -10/Materials Mutant | -9/Materials Mutant | -9/Mines Mutant | -9/Exiles Mutant | -8/Mines Skirmisher | -8/Materials Tank | -8/Garrison Hacker-Skirmisher | -8/Materials Skirmisher | -8/Garrison Skirmisher | -8/Materials Skirmisher | -7/Factory Skirmisher | -7/Garrison Scavenger-Skirmisher | -7/Factory Skirmisher | -7/Garrison Skirmisher | -7/Factory Resources | -11 -10 -9 -9 -9 -8 -8 -8 -8 -8 -8 -7 -7 -7 -7 -7 ----------- Run | Yrd Mat Mat Min Exi Min Mat Gar Mat Gar Mat Fac Gar Fac Gar Fac Matter Collected 2861 | 205 85 109 29 . 18 257 401 355 115 273 35 136 27 286 530 Remotely . | . . . . . . . . . . . . . . . . Salvage Created 6570 | . 179 558 . . 54 1780 615 417 306 696 267 579 64 426 629 Parts 326 | . 2 24 . . 1 84 42 17 20 31 14 24 2 22 43 Haulers Intercepted 7 | . 1 2 . . . 3 . . . . . . . . 1 Recyclers Shooed 4 | . . 1 . . . 2 . . . . . . . . 1 Parts Field Recycled . | . . . . . . . . . . . . . . . . Retrieved Matter . | . . . . . . . . . . . . . . . . Parts Self-Destructed . | . . . . . . . . . . . . . . . . Prevented . | . . . . . . . . . . . . . . . . Kills | -11 -10 -9 -9 -9 -8 -8 -8 -8 -8 -8 -7 -7 -7 -7 -7 ------- Run | Yrd Mat Mat Min Exi Min Mat Gar Mat Gar Mat Fac Gar Fac Gar Fac Combat Hostiles Destroyed 127 | . 2 6 . . 1 23 22 7 10 14 4 13 1 13 11 Guns 64 | . 2 3 . . . 10 15 2 6 7 1 3 1 13 1 Cannons 52 | . . 3 . . 1 10 6 4 4 6 1 9 . . 8 AOE 5 | . . . . . . 2 . . . . 1 . . . 2 Classes Destroyed 16 | . 3 3 . . . 8 . . . . 1 1 . . . Worker 9 | . . . . . . 3 . . . . 2 . . . 4 Builder 3 | . . . . . . 2 . 1 . . . . . . . Hauler 7 | . 1 2 . . . 3 . . . . . . . . 1 Recycler 5 | . . 3 . . . 1 . . . . . . . . 1 Mechanic 1 | . 1 . . . . . . . . . . . . . . Operator 4 | . . . . . . 1 . . . 1 1 . . . 1 Watcher 9 | . . . . . . 4 . 1 . 1 1 . . . 2 Swarmer 32 | . . 2 . . . . 11 . 6 3 . 3 . 7 . Grunt 59 | . 2 3 . . 1 14 6 5 3 9 1 6 . 6 3 Brawler 3 | . . . . . . 1 . . . . . . . . 2 Duelist 1 | . . . . . . . . . . . . 1 . . . Sentry 19 | . . 1 . . . 3 3 2 1 1 1 2 1 . 4 Specialist 2 | . . . . . . 2 . . . . . . . . . Hunter 7 | . . . . . . 2 2 . . 1 1 1 . . . Programmer 3 | . . . . . . . . . . . 1 . . . 2 Heavy 1 | . . . . . . 1 . . . . . . . . . Best Kill Streak 11 | . 3 6 . . 1 8 11 4 4 4 3 10 1 10 4 Combat Bots Only 11 | . 2 3 . . 1 3 11 3 4 4 2 10 1 10 4 Max Kills in Single Turn 3 | . 1 1 . . 1 3 2 1 1 1 1 2 1 1 2 Gunslinging . | . . . . . . . . . . . . . . . . Exploded 1 | . . . . . . 1 . . . . 1 . . . 1 Melee . | . . . . . . . . . . . . . . . . Uniques/NPCs Destroyed . | . . . . . . . . . . . . . . . . Combat | -11 -10 -9 -9 -9 -8 -8 -8 -8 -8 -8 -7 -7 -7 -7 -7 -------- Run | Yrd Mat Mat Min Exi Min Mat Gar Mat Gar Mat Fac Gar Fac Gar Fac Hostile Shots Fired 863 | . 20 16 . . 4 134 188 13 35 62 27 150 9 48 157 Missed 274 | . 3 5 . . 2 48 57 6 8 20 9 45 5 15 51 Damage Taken 7506 | . 212 133 . . 29 1450 1540 79 176 649 250 1000 267 411 1310 Core 1289 | . 53 47 . . . 248 137 18 18 60 . 149 . 31 528 Absorbed by Shields 456 | . . . . . . . 9 29 67 . 85 171 . 95 . Redirected to Shielding 106 | . . . . . . . . . . 48 . 58 . . . Regen/Repaired (Parts) 199 | . . 52 . . . 129 . . . 18 . . . . . Core Remaining (%) 69 | 100 78 . . . 88 . . . . 12 . . . . . Volleys Fired 400 | . 20 22 . . 5 89 61 15 16 36 18 28 7 26 57 Largest 3 | . 2 2 . . 2 3 3 3 3 3 2 3 3 3 3 Hottest 276 | . 70 136 . . 136 192 159 156 156 207 149 276 206 131 145 Shots Fired 976 | . 40 44 . . 10 262 143 46 36 89 26 72 9 72 127 Gun 602 | . 40 36 . . . 167 96 30 24 47 12 27 2 72 49 Cannon 374 | . . 8 . . 10 95 47 16 12 42 14 45 7 . 78 Launcher . | . . . . . . . . . . . . . . . . Special . | . . . . . . . . . . . . . . . . Kinetic 470 | . 20 18 . . . 20 114 30 24 47 . 16 1 64 116 Thermal 331 | . 20 26 . . 10 115 29 16 12 20 12 55 8 8 . Explosive . | . . . . . . . . . . . . . . . . Electromagnetic 175 | . . . . . . 127 . . . 22 14 1 . . 11 Robot Hit Streak 22 | . 7 12 . . 6 12 11 6 6 12 18 22 3 8 18 Robot Miss Streak 15 | . 3 2 . . 1 5 15 5 2 4 5 4 . 7 5 Penetration Max 1 | . . . . . . . . 1 . 1 . . . . 1 Secondary Targets 6 | . . . . . . 1 2 . 1 . . . . 2 . Max Gunslinging Chain 1 | . . . . . . 1 1 . 1 . . . . 1 . Shots Hit Robots 554 | . 25 32 . . 7 162 85 20 14 53 17 36 2 37 64 Core Hits 302 | . 10 15 . . 4 74 51 12 11 23 13 26 2 29 32 Critical Kills 6 | . . . . . . 1 2 2 . . . 1 . . . Critical Parts Destroyed 5 | . . . . . . 1 1 . . 2 . . . . 1 Critical Strikes 21 | . 2 2 . . . 3 4 2 . 4 . 1 . . 3 Burn 6 | . 2 2 . . . 1 1 . . . . . . . . Meltdown 4 | . . . . . . 1 1 1 . . . 1 . . . Destroy 7 | . . . . . . 1 2 1 . 2 . . . . 1 Blast 2 | . . . . . . . . . . . . . . . 2 Corrupt 2 | . . . . . . . . . . 2 . . . . . Melee Attacks . | . . . . . . . . . . . . . . . . Impact . | . . . . . . . . . . . . . . . . Slashing . | . . . . . . . . . . . . . . . . Piercing . | . . . . . . . . . . . . . . . . Sneak Attacks . | . . . . . . . . . . . . . . . . Combat Hostiles . | . . . . . . . . . . . . . . . . Follow-up Attacks . | . . . . . . . . . . . . . . . . Damage Inflicted 13048 | . 263 490 7 . 176 3216 1436 598 398 1604 546 1185 57 674 2398 Guns 6144 | . 263 386 . . . 1380 879 246 221 678 335 395 23 674 664 Cannons 5668 | . . 104 . . 165 1321 557 352 177 926 211 790 34 . 1031 Explosions 1218 | . . . . . . 515 . . . . . . . . 703 Melee . | . . . . . . . . . . . . . . . . Ramming 18 | . . . 7 . 11 . . . . . . . . . . Kinetic 4925 | . 115 140 . . . 149 1079 246 221 678 . 96 23 531 1647 Thermal 5942 | . 148 350 . . 165 2058 357 352 177 471 335 1066 34 143 286 Explosive 417 | . . . . . . . . . . . . . . . 417 Electromagnetic 1746 | . . . . . . 1009 . . . 455 211 23 . . 48 Impact . | . . . . . . . . . . . . . . . . Slashing . | . . . . . . . . . . . . . . . . Piercing . | . . . . . . . . . . . . . . . . Highest Corruption 6 | . . . . . . 2 2 2 2 2 3 3 6 6 6 Average Corruption 3 | . . . . . . 2 2 2 2 2 2 3 3 6 6 Corruption Purged . | . . . . . . . . . . . . . . . . Corruption Blocked . | . . . . . . . . . . . . . . . . Effects 114 | . . . . . . 6 12 7 10 10 5 6 3 7 48 Message Errors 27 | . . . . . . 1 3 . 2 . 3 1 . 3 14 Matter Fused 17 | . . . . . . 2 1 2 2 1 . 2 1 . 6 Heat Flow Errors 14 | . . . . . . 1 2 . 3 2 . . . 1 5 Energy Discharges 15 | . . . . . . . . 3 . 2 . 1 1 1 7 Parts Rejected 2 | . . . . . . . . . . 1 . . . . 1 Parts Fused 2 | . . . . . . . . . . . 1 . . 1 . Data Loss (minor) 14 | . . . . . . . 1 1 2 3 . . 1 . 6 Data Loss (major) 5 | . . . . . . . 1 . 1 . . . . . 3 Misfires 10 | . . . . . . . 3 1 . . 1 . . . 5 Alerts 1 | . . . . . . . 1 . . . . . . . . Weapon Failures 7 | . . . . . . 2 . . . 1 . 2 . 1 1 Overload Shots . | . . . . . . . . . . . . . . . . Overflow Damage 150 | . . . . . . 25 4 12 . 18 1 . . . 90 Projectiles 73 | . . . . . . 25 4 12 . 18 1 . . . 13 Explosions 77 | . . . . . . . . . . . . . . . 77 Melee . | . . . . . . . . . . . . . . . . Knockbacks 2 | . . . 1 . . . 1 . . . . . . . . Impact 1 | . . . 1 . . . . . . . . . . . . Kinetic 1 | . . . . . . . 1 . . . . . . . . Secondary . | . . . . . . . . . . . . . . . . Self-Inflicted Damage 299 | . . . . . . . . . . . . . . . 299 Shots 4 | . . . . . . . . . . . . . . . 4 Rammed 4 | . . . 1 . 3 . . . . . . . . . . Targets Rammed 4 | . . . 1 . 3 . . . . . . . . . . Kicked . | . . . . . . . . . . . . . . . . Crushed . | . . . . . . . . . . . . . . . . Highest Temperature 311 | . 295 110 . . 7 260 306 286 187 198 130 311 . 117 264 Average Temperature 77 | . 140 24 . . 4 46 50 93 80 93 44 142 . 62 92 Received Heat Transfer 2256 | . 123 69 . . 18 513 369 36 33 360 18 300 18 33 366 Effects 2 | . . . . . . . . . . . . 2 . . . Interference 2 | . . . . . . . . . . . . 2 . . . Siege Activations . | . . . . . . . . . . . . . . . . Robots Corrupted 1 | . . . . . . . . . . 1 . . . . . Combat Hostiles 1 | . . . . . . . . . . 1 . . . . . Parts Fried 14 | . . . . . . 5 . . . 5 4 . . . . Impact Corruptions . | . . . . . . . . . . . . . . . . Robots Melted 5 | . . . . . . 1 1 1 . . 1 1 . . . Combat Hostiles 5 | . . . . . . 1 1 1 . . 1 1 . . . Parts Melted 33 | . 6 . . . 2 8 3 2 1 . 2 9 . . . Heat Transferred 10436 | . 592 888 . . 296 3473 814 500 250 700 700 1673 50 300 200 Parts Sabotaged . | . . . . . . . . . . . . . . . . Parts Stolen . | . . . . . . . . . . . . . . . . Parts Stripped . | . . . . . . . . . . . . . . . . Power Chain Reactions 4 | . . . . . . 4 . . . . . . . . . Alert | -11 -10 -9 -9 -9 -8 -8 -8 -8 -8 -8 -7 -7 -7 -7 -7 ------- Run | Yrd Mat Mat Min Exi Min Mat Gar Mat Gar Mat Fac Gar Fac Gar Fac Peak Influence 690 | . 106 161 36 . 104 339 690 344 410 656 249 378 233 327 547 Initial 336 | . . 44 36 . . . 209 336 83 199 158 132 198 8 171 Average 175 | . 53 110 14 . 10 180 552 112 253 399 136 276 142 168 107 Maximum Alert Level 2 | . . . . . . 1 2 1 2 2 1 1 1 1 2 Low Security (%) 64 | 100 100 100 100 . 100 48 . 76 33 2 85 30 68 45 86 Level 1 23 | . . . . . . 51 20 23 47 49 14 69 31 54 9 Level 2 11 | . . . . . . . 79 . 19 47 . . . . 3 Level 3 . | . . . . . . . . . . . . . . . . Level 4 . | . . . . . . . . . . . . . . . . Level 5 . | . . . . . . . . . . . . . . . . High Security . | . . . . . . . . . . . . . . . . Max Security . | . . . . . . . . . . . . . . . . Squads Dispatched 23 | . . . . . . 6 . 3 . 5 2 . . . 7 Investigation 6 | . . . . . . 2 . 1 . 2 . . . . 1 Extermination 2 | . . . . . . . . . . . . . . . 2 Reinforcement 10 | . . . . . . 4 . 1 . 3 1 . . . 1 Assault . | . . . . . . . . . . . . . . . . Garrison 5 | . . . . . . . . 1 . . 1 . . . 3 Intercept . | . . . . . . . . . . . . . . . . Searches Triggered . | . . . . . . . . . . . . . . . . Construction Impeded 5 | . . . . . . 1 . 1 . 1 1 . . . 1 Haulers Reinforced . | . . . . . . . . . . . . . . . . Active Scanning Responses . | . . . . . . . . . . . . . . . . Cargo Convoy Interrupts . | . . . . . . . . . . . . . . . . Stealth | -11 -10 -9 -9 -9 -8 -8 -8 -8 -8 -8 -7 -7 -7 -7 -7 --------- Run | Yrd Mat Mat Min Exi Min Mat Gar Mat Gar Mat Fac Gar Fac Gar Fac Distress Signals 12 | . . . . . . 2 . 2 . 4 1 . . . 3 Communications Jammed . | . . . . . . . . . . . . . . . . Distress Signals . | . . . . . . . . . . . . . . . . Times Spotted 182 | . 5 6 . . 3 34 21 10 12 28 7 11 1 13 31 Peak Tracking Total 11 | . 3 3 . . 3 5 11 2 4 7 4 5 1 5 9 Tactical Retreats 14 | . . 1 . . . 6 1 1 . 2 . . . . 3 Traps | -11 -10 -9 -9 -9 -8 -8 -8 -8 -8 -8 -7 -7 -7 -7 -7 ------- Run | Yrd Mat Mat Min Exi Min Mat Gar Mat Gar Mat Fac Gar Fac Gar Fac Traps Triggered 21 | . . . . . . 1 4 . 4 . 1 1 . 5 5 Indirectly . | . . . . . . . . . . . . . . . . Trap Hack Attempts . | . . . . . . . . . . . . . . . . Triggered . | . . . . . . . . . . . . . . . . Disarmed . | . . . . . . . . . . . . . . . . Reprogrammed . | . . . . . . . . . . . . . . . . Reused . | . . . . . . . . . . . . . . . . Traps Extracted . | . . . . . . . . . . . . . . . . Installed . | . . . . . . . . . . . . . . . . Triggered . | . . . . . . . . . . . . . . . . Machines | -11 -10 -9 -9 -9 -8 -8 -8 -8 -8 -8 -7 -7 -7 -7 -7 ---------- Run | Yrd Mat Mat Min Exi Min Mat Gar Mat Gar Mat Fac Gar Fac Gar Fac Machines Disabled 29 | . . 1 . . 2 1 1 . 2 2 2 . . 1 17 Max in Single Turn 5 | . . 1 . . 1 1 1 . 1 1 1 . . 1 5 Garrison Relay 4 | . . . . . . . 2 . 1 . . . . 1 . Machines Repaired . | . . . . . . . . . . . . . . . . Machines Dismantled . | . . . . . . . . . . . . . . . . Machines Sabotaged . | . . . . . . . . . . . . . . . . Overloaded Fab Kills . | . . . . . . . . . . . . . . . . Hacking | -11 -10 -9 -9 -9 -8 -8 -8 -8 -8 -8 -7 -7 -7 -7 -7 --------- Run | Yrd Mat Mat Min Exi Min Mat Gar Mat Gar Mat Fac Gar Fac Gar Fac Machines Accessed 46 | . 2 5 . 2 . 5 4 6 2 3 3 1 4 1 8 Terminals 34 | . 2 4 . . . 3 4 5 2 2 1 1 3 1 6 Fabricators 1 | . . . . . . . . . . . . . . . 1 Repair Stations 3 | . . 1 . . . 1 . . . 1 . . . . . Recycling Units 1 | . . . . . . . . . . . 1 . . . . Scanalyzers . | . . . . . . . . . . . . . . . . Garrison Access 5 | . . . . . . 1 . 1 . . 1 . 1 . 1 Total Hacks 111 | . 7 15 . 2 . 8 7 15 5 10 8 3 9 3 19 Successful 61 | . 6 7 . 2 . 5 2 9 2 5 6 1 6 1 9 Failed 50 | . 1 8 . . . 3 5 6 3 5 2 2 3 2 10 Catastrophic 16 | . 1 2 . . . 3 . 1 1 1 1 1 1 . 4 Database Lockouts . | . . . . . . . . . . . . . . . . Manual 60 | . . 10 . 1 . 4 . 11 2 6 6 1 5 1 13 Terminals 85 | . 7 13 . . . 5 7 14 5 6 1 3 8 3 13 Fabricators 4 | . . . . . . . . . . . . . . . 4 Repair Stations 8 | . . 2 . . . 2 . . . 4 . . . . . Recycling Units 6 | . . . . . . . . . . . 6 . . . . Scanalyzers . | . . . . . . . . . . . . . . . . Garrison Access 6 | . . . . . . 1 . 1 . . 1 . 1 . 2 Terminal Hacks 40 | . 6 5 . 2 . 2 2 8 2 2 . 1 4 1 5 Record 2 | . 1 . . 1 . . . . . . . . . . . Robot Analysis 4 | . . 2 . . . . . 2 . . . . . . . Prototype ID Bank 4 | . 2 1 . . . . . . . . . . . . 1 Branch Access Points 2 | . . 1 . . . . . . . . . . . . 1 Emergency Access Points 3 | . 1 . . . . . . . 1 . . 1 . . . Terminal Index 3 | . . . . . . . . 1 . . . . 1 . 1 Recycling Unit Index 1 | . 1 . . . . . . . . . . . . . . Garrison Index 1 | . . . . . . . . 1 . . . . . . . Alert Level 2 | . . . . . . . . . . 1 . . 1 . . Unreport Threat 9 | . . . . . . 1 . 4 . 1 . . 2 . 1 Dispatch Records 1 | . 1 . . . . . . . . . . . . . . Hauler Manifests 1 | . . 1 . . . . . . . . . . . . . Zone Layout 2 | . . . . . . 1 . . . . . . . . 1 Garrison Registry 1 | . . . . . . . 1 . . . . . . . . Patrol Navigation 1 | . . . . . . . . . . . . . . 1 . Security Stations 2 | . . . . . . . 1 . 1 . . . . . . Derelict Proto ID Bank 1 | . . . . 1 . . . . . . . . . . . Fabricator Hacks 1 | . . . . . . . . . . . . . . . 1 Network Status 1 | . . . . . . . . . . . . . . . 1 Repair Station Hacks 7 | . . 2 . . . 2 . . . 3 . . . . . Scan Component 4 | . . 1 . . . 1 . . . 2 . . . . . Repair 3 | . . 1 . . . 1 . . . 1 . . . . . Recycling Unit Hacks 1 | . . . . . . . . . . . 1 . . . . Retrieve Components 1 | . . . . . . . . . . . 1 . . . . Scanalyzer . | . . . . . . . . . . . . . . . . Garrison Access Hacks 4 | . . . . . . 1 . 1 . . 1 . 1 . . Unlock Access 4 | . . . . . . 1 . 1 . . 1 . 1 . . Unauthorized Hacks 8 | . . . . . . . . . . . 4 . 1 . 3 Terminals 2 | . . . . . . . . . . . . . 1 . 1 Botnet 2 | . . . . . . . . . . . . . 1 . 1 Fabricators 2 | . . . . . . . . . . . . . . . 2 Liberate 1 | . . . . . . . . . . . . . . . 1 Fabnet 1 | . . . . . . . . . . . . . . . 1 Repair Stations . | . . . . . . . . . . . . . . . . Recycling Units 4 | . . . . . . . . . . . 4 . . . . Monitor 1 | . . . . . . . . . . . 1 . . . . Reject 1 | . . . . . . . . . . . 1 . . . . Recyclers 1 | . . . . . . . . . . . 1 . . . . Mask 1 | . . . . . . . . . . . 1 . . . . Scanalyzers . | . . . . . . . . . . . . . . . . Garrison Access . | . . . . . . . . . . . . . . . . Data Cores Recovered 1 | . . . . . . . . . . . . . . . 1 Used . | . . . . . . . . . . . . . . . . Hacking Detections 36 | . 2 3 . . . 3 3 5 2 3 2 1 3 1 8 Full Trace Events 5 | . 1 1 . . . . . . . 2 . . . . 1 Feedback Events . | . . . . . . . . . . . . . . . . Feedback Blocked . | . . . . . . . . . . . . . . . . Robot Schematics Acquired . | . . . . . . . . . . . . . . . . Robots Built . | . . . . . . . . . . . . . . . . Authchips . | . . . . . . . . . . . . . . . . Time . | . . . . . . . . . . . . . . . . Total Robot Build Rating . | . . . . . . . . . . . . . . . . Part Schematics Acquired . | . . . . . . . . . . . . . . . . Parts Built . | . . . . . . . . . . . . . . . . Authchips . | . . . . . . . . . . . . . . . . Time . | . . . . . . . . . . . . . . . . Total Part Build Rating . | . . . . . . . . . . . . . . . . Parts Repaired 3 | . . 1 . . . 1 . . . 1 . . . . . Time 142 | . . 26 . . . 38 . . . 78 . . . . . Parts Recycled . | . . . . . . . . . . . . . . . . Recycled Matter . | . . . . . . . . . . . . . . . . Retrieved Matter . | . . . . . . . . . . . . . . . . Retrieved Components 3 | . . . . . . . . . . . 3 . . . . Parts Scanalyzed . | . . . . . . . . . . . . . . . . Part Schematics Acquired . | . . . . . . . . . . . . . . . . Parts Damaged . | . . . . . . . . . . . . . . . . Bothacking | -11 -10 -9 -9 -9 -8 -8 -8 -8 -8 -8 -7 -7 -7 -7 -7 ------------ Run | Yrd Mat Mat Min Exi Min Mat Gar Mat Gar Mat Fac Gar Fac Gar Fac Used RIF Installer . | . . . . . . . . . . . . . . . . Robots Hacked . | . . . . . . . . . . . . . . . . Non-combat . | . . . . . . . . . . . . . . . . Combat . | . . . . . . . . . . . . . . . . Robot Hacks Applied . | . . . . . . . . . . . . . . . . Relay Couplers Released 16 | . . . . . . . 8 . 5 . . . . 3 . Machine Destruction 16 | . . . . . . . 8 . 5 . . . . 3 . Fabnet Peak Effective % . | . . . . . . . . . . . . . . . . Robots Rewired . | . . . . . . . . . . . . . . . . Allies Hacked . | . . . . . . . . . . . . . . . . Hacks Repelled . | . . . . . . . . . . . . . . . . Allies | -11 -10 -9 -9 -9 -8 -8 -8 -8 -8 -8 -7 -7 -7 -7 -7 -------- Run | Yrd Mat Mat Min Exi Min Mat Gar Mat Gar Mat Fac Gar Fac Gar Fac Total Allies 3 | . . . 3 . . . . . . . . . . . . Largest Group 3 | . . . 3 3 3 2 . . . . . . . . . Highest-Rated Group 40 | . . . 40 40 40 24 . . . . . . . . . Highest-Rated Ally 16 | . . . 16 16 16 16 . . . . . . . . . Total Orders . | . . . . . . . . . . . . . . . . Ally Attacks 19 | . . . . . 14 5 . . . . . . . . . Total Damage 206 | . . . . . 148 58 . . . . . . . . . Kills 2 | . . . . . 2 . . . . . . . . . . Allies Corrupted . | . . . . . . . . . . . . . . . . Allies Melted . | . . . . . . . . . . . . . . . . Intel | -11 -10 -9 -9 -9 -8 -8 -8 -8 -8 -8 -7 -7 -7 -7 -7 ------- Run | Yrd Mat Mat Min Exi Min Mat Gar Mat Gar Mat Fac Gar Fac Gar Fac Robot Analysis Total 4 | . . 2 . . . . . 2 . . . . . . . Derelict Logs Recovered 1 | . . . 1 . . . . . . . . . . . . Drone Launches . | . . . . . . . . . . . . . . . . Drone Recoveries . | . . . . . . . . . . . . . . . . Exploration | -11 -10 -9 -9 -9 -8 -8 -8 -8 -8 -8 -7 -7 -7 -7 -7 ------------- Run | Yrd Mat Mat Min Exi Min Mat Gar Mat Gar Mat Fac Gar Fac Gar Fac Turns Passed 9836 | 67 213 486 967 331 577 1405 846 514 488 582 670 260 179 337 1914 Spaces Moved 6270 | 41 95 215 604 207 346 868 517 349 365 285 480 120 139 192 1447 Core 9 | 9 . . . . . . . . . . . . . . . Treads 1580 | 32 95 215 604 207 346 69 9 . 3 . . . . . . Legs . | . . . . . . . . . . . . . . . . Wheels 4681 | . . . . . . 799 508 349 362 285 480 120 139 192 1447 Hover . | . . . . . . . . . . . . . . . . Flight . | . . . . . . . . . . . . . . . . Fastest Speed 50 | 50 160 160 160 160 160 100 100 115 115 115 115 115 115 115 115 Average Speed 127 | 135 160 171 160 160 160 111 123 115 116 141 116 115 115 115 115 Slowest Speed 305 | 160 160 240 160 160 160 240 305 115 305 145 130 115 115 115 145 Overloaded Moves . | . . . . . . . . . . . . . . . . Propulsion Burnouts . | . . . . . . . . . . . . . . . . Robots Hopped . | . . . . . . . . . . . . . . . . Cave-ins Triggered 1 | . . . . . . . . . . . . . 1 . . Exploration Rate (%) 41 | 4 20 24 98 60 87 68 64 36 57 36 13 21 4 29 44 Regions Visited 15 Branch Regions 3 Pre-discovered Areas 2 | . . . 1 1 . . . . . . . . . . . Known Exits Taken 6 | . . 1 . . 1 1 . 1 . . 1 . 1 . . Unknown Exits Taken 5 | 1 1 . 1 1 . . . . . 1 . . . . . Scrap Searched 4 | . . . 2 . 2 . . . . . . . . . . Spaces Dug 12 | . . . . . . . . . . . . . 6 . 6 Terrain Destroyed 189 | . . . . . . 19 . 16 1 8 8 4 6 1 126 Melee . | . . . . . . . . . . . . . . . . Projectile 46 | . . . . . . . . 16 1 8 . 4 6 1 10 AOE 143 | . . . . . . 19 . . . . 8 . . . 116 Terrain Rammed . | . . . . . . . . . . . . . . . . Walls Destroyed . | . . . . . . . . . . . . . . . . Machines Disabled . | . . . . . . . . . . . . . . . . Actions | -11 -10 -9 -9 -9 -8 -8 -8 -8 -8 -8 -7 -7 -7 -7 -7 --------- Run | Yrd Mat Mat Min Exi Min Mat Gar Mat Gar Mat Fac Gar Fac Gar Fac Total 7359 | 51 120 291 604 207 357 1113 626 433 403 402 564 179 149 255 1605 Wait 353 | . 3 32 . . . 90 3 60 7 63 50 7 . 3 35 Move 6255 | 40 94 214 603 206 345 868 514 349 363 284 480 119 138 191 1447 Hop . | . . . . . . . . . . . . . . . . Pick Up 96 | 5 . 7 . 1 1 20 12 2 3 5 8 6 1 . 25 Fast Attach 30 | 3 2 6 . . 1 4 2 1 1 2 1 2 . . 5 Attach 40 | 3 . . . . . 5 9 . . 3 3 7 2 2 6 Detach 1 | . . . . . . . . . . . 1 . . . . Swap 37 | . . 4 . . 1 10 4 3 . 5 1 1 . 1 7 Drop 58 | . 1 6 . . 1 18 5 3 2 4 2 1 . . 15 Fire 400 | . 20 22 . . 5 89 61 15 16 36 18 28 7 26 57 Melee . | . . . . . . . . . . . . . . . . Ram . | . . . . . . . . . . . . . . . . Kick . | . . . . . . . . . . . . . . . . Crush 4 | . . . 1 . 3 . . . . . . . . . . Escape Stasis 76 | . . . . . . . 16 . 11 . . 8 1 32 8 Rewire 9 | . . . . . . 9 . . . . . . . . . Trap . | . . . . . . . . . . . . . . . . Miscellaneous . | . . . . . . . . . . . . . . . . Route ------- -11/Scrapyard -10/Materials -9/Materials -9/Mines (discovered 3 exits: *Mat x2 / *Exi) -9/Exiles -8/Mines -8/Materials (discovered 3 exits: *Fac x2 / Gar) -8/Garrison (discovered 3 exits: *Mat x3) -8/Materials (discovered 2 exits: *Fac / Gar) -8/Garrison (discovered 2 exits: *Mat x2) -8/Materials -7/Factory (discovered 2 exits: *Sto / Gar) -7/Garrison -7/Factory -7/Garrison -7/Factory (discovered 6 exits: [*Fac x3] / Sto / *Low x2) History --------- Turn | Location | Event 27 | -11/Scrapyard | Discovered new exit (range 15) 68 | -11/Scrapyard | Entered Materials 187 | -10/Materials | Discovered new exit (range 16) 281 | -10/Materials | Entered another Materials area 281 | -9/Materials | Evolved 2 slots: Utility x2 310 | -9/Materials | Build established: Mutant 517 | -9/Materials | Identified exit to Mines 577 | -9/Materials | Repaired Lgt. Treads 767 | -9/Materials | Entered Mines 790 | -9/Mines | Met a Derelict bent on vengeance 878 | -9/Mines | Discovered new exit (range 9) 943 | -9/Mines | Identified exit to Materials 1201 | -9/Mines | Assisted by bots powering up and referring to "LRC-V3" 1404 | -9/Mines | Learned location of Storage (-7) 1727 | -9/Mines | Deemed a non-threat by the Exiles lab entrance 1727 | -9/Mines | Discovered new exit (range 5) 1734 | -9/Mines | Entered Exiles 1734 | -9/Exiles | Accompanied by 3 allies 1773 | -9/Exiles | Met 8R-AWN 1800 | -9/Exiles | Met EX-HEX 1845 | -9/Exiles | Met EX-BIN 1864 | -9/Exiles | Aligned with FarCom system 1866 | -9/Exiles | Given EX-Vault access code 1902 | -9/Exiles | Opened EX-Vault 1914 | -9/Exiles | Found Superbattery 1945 | -9/Exiles | Warned to stay clear of 0b10 Research branches 1988 | -9/Exiles | Met EX-DEC 1999 | -9/Exiles | Learned location of Zion (-6) 2046 | -9/Exiles | Discovered new exit (range 14) 2065 | -9/Exiles | Left Exiles lab with Superbattery 2065 | -9/Exiles | Entered Mines 2065 | -8/Mines | Accompanied by 3 allies 2626 | -8/Mines | Discovered exit to Materials (range 8) 2642 | -8/Mines | Entered Materials 2642 | -8/Materials | Accompanied by 2 allies 2642 | -8/Materials | Evolved 2 slots: Propulsion x1, Weapon x1 2961 | -8/Materials | Build established: Skirmisher 3403 | -8/Materials | Discovered new exit (range 9) 3411 | -8/Materials | Lost 3 parts (3w) 3660 | -8/Materials | Repaired Adv. Treads 3821 | -8/Materials | Discovered new exit (range 16) 4047 | -8/Materials | Identified exit to Garrison 4047 | -8/Materials | Entered Garrison 4055 | -8/Garrison | Triggered checkpoint 4115 | -8/Garrison | Triggered checkpoint 4121 | -8/Garrison | Garrison Relay disabled 4179 | -8/Garrison | Triggered checkpoint 4192 | -8/Garrison | Core integrity fell below 50% 4237 | -8/Garrison | Lost 4 parts (1p2n1w) 4258 | -8/Garrison | Destroyed 11 combat bots 4276 | -8/Garrison | Discovered new exit (range 12) 4314 | -8/Garrison | Triggered checkpoint 4362 | -8/Garrison | Garrison Relay disabled 4373 | -8/Garrison | Discovered new exit (range 7) 4373 | -8/Garrison | Discovered new exit (range 72) 4373 | -8/Garrison | Discovered new exit (range 82) 4512 | -8/Garrison | Lost 3 parts (2u1w) 4586 | -8/Garrison | Attempted to access garrison exit controls, blocked by remote lockdown 4721 | -8/Garrison | Attempted to access garrison exit controls, blocked by remote lockdown 4822 | -8/Garrison | Build established: Tank 4865 | -8/Garrison | Learned Materials security intel 4893 | -8/Garrison | Entered Materials 5098 | -8/Materials | Discovered new exit (range 3) 5114 | -8/Materials | Met 7R-MNS 5324 | -8/Materials | Build established: Hacker-Skirmisher 5357 | -8/Materials | Garrison activated, responded to threat 5407 | -8/Materials | Identified exit to Garrison 5407 | -8/Materials | Entered Garrison 5431 | -8/Garrison | Triggered checkpoint 5501 | -8/Garrison | Triggered checkpoint 5567 | -8/Garrison | Triggered checkpoint 5569 | -8/Garrison | Garrison Relay disabled 5628 | -8/Garrison | Discovered new exit (range 10) 5639 | -8/Garrison | Attempted to access garrison exit controls, blocked by remote lockdown 5678 | -8/Garrison | Build established: Skirmisher 5709 | -8/Garrison | Triggered checkpoint 5755 | -8/Garrison | Learned Materials security intel 5789 | -8/Garrison | Triggered checkpoint 5867 | -8/Garrison | Spotted B-75 Beast 5880 | -8/Garrison | Discovered new exit (range 14) 5895 | -8/Garrison | Entered Materials 5990 | -8/Materials | Repaired Broken Adv. Shield Generator 5990 | -8/Materials | Core integrity fell below 20% 6422 | -8/Materials | Discovered new exit (range 3) 6477 | -8/Materials | Entered Factory 6477 | -7/Factory | Evolved 2 slots: Propulsion x1, Utility x1 6579 | -7/Factory | Discovered new exit (range 8) 7088 | -7/Factory | Garrison activated, responded to threat 7147 | -7/Factory | Identified exit to Garrison 7147 | -7/Factory | Entered Garrison 7206 | -7/Garrison | Triggered checkpoint 7279 | -7/Garrison | Lost 5 parts (1p2u2w) 7294 | -7/Garrison | Destroyed 10 combat bots 7395 | -7/Garrison | Discovered new exit (range 11) 7407 | -7/Garrison | Entered Factory 7530 | -7/Factory | Crushed by falling debris 7586 | -7/Factory | Identified exit to Garrison 7586 | -7/Factory | Entered Garrison 7688 | -7/Garrison | Triggered checkpoint 7761 | -7/Garrison | Destroyed 10 combat bots 7801 | -7/Garrison | Discovered new exit (range 12) 7820 | -7/Garrison | Triggered checkpoint 7864 | -7/Garrison | Garrison Relay disabled 7923 | -7/Garrison | Entered Factory 8290 | -7/Factory | Discovered new exit (range 7) 8443 | -7/Factory | Identified exit to Storage 8443 | -7/Factory | Identified exit to Lower Caves 8591 | -7/Factory | Discovered new exit (range 3) 9037 | -7/Factory | Discovered new exit (range 16) 9353 | -7/Factory | Build established: Gunner 9575 | -7/Factory | Core integrity fell below 50% 9588 | -7/Factory | Lost 4 parts (1p2u1w) 9772 | -7/Factory | Core integrity fell below 20% 9837 | -7/Factory | Destroyed by G-47 Trooper with Particle Gun Last Messages --------------- 09783_ U-05 Engineer lays Concrete. 09784_ U-05 Engineer builds a Wall. 09784_ U-05 Engineer lays Concrete. 09786_ U-05 Engineer builds a Wall. 09786_ W-25 Informer sends out distress signal. 09787_ System corrupted: FCS attempts to trigger Gauss Rifle. 09787_ System corrupted: Gauss Rifle misfires. 09787_ ALERT: Construction progress impeded, dispatching reinforcements to local area. 09787_ U-05 Engineer lays Concrete. 09787_ K-01 Serf collects debris. 09791_ U-05 Engineer builds a Wall. 09793_ K-01 Serf collects debris. 09795_ U-05 Engineer builds a Wall. 09796_ K-01 Serf collects debris. 09803_ U-05 Engineer lays Concrete. 09817_ K-01 Serf cleans the Pressure Siphon. 09831_ Critical hit (Burn: +37). Map ----- +----------------------------------------------------+ | ??# ???????????????????#!! """"""" """""""" | | ??# ???????????????????#!! """"""" | | ??+ ???????????????????#!!% """""""" | | ??# ???????????????????# | | ??? ???????????????????#!== [ | | ??? ???????????????????#!= | | ??? ???????????????????#!= ############# | | ??? ???????????????????# #???????????? | | ??? ???????????????????# #???????????? | | ??? ???????????????????# ############# | | ??? ???????????????????# | | ????????????????????????# | | ????????????????????????# [! """ """ """ """ "" | | #????????????????######## [! """ %"" """ """ "" | | ????????????????? k """ """ """ """ "" | | ????????????????? """ """ """ """ "" | | ????????????????? | | ?????????????????? [[ g | | """ ?????????????"? """ [[ | | """ ????????????""" """ [ g g | | """ """?????????""" """ g g | | "" ""??????""? "" "" | | "" "" "? "" "" "" m | | k #################### | | a g #??????????????????? | | ] u @ #????????????####### | | ########?????#### #????????????? | | ????????????????# #????????????? | | ????????????????# ##?????????????? " " | | ????????????????+ #??????????????? " " | | ????????????????# #??????????????? " " | | ????????????????# " " #??????????????? " " | | ????????????????# " " #??????????????T " " | | ?????????######## " " #??????????????" " " | | ????????? # " " #?????????????"" " " | | ???????? " """?? ?" " !! #?????????????"" " " | | ######## " "R" #????" !! #????????????#"" " " | | + " " " #????" +????????????#" | | ######## " #????" w #????????????# | | ???????? " #????" #????????????# | | ????????? " ! #?????? ??????????????# | | ????????? " #?????????????????????????# | | ??????????" ] #?????????????????????????######## | | ??????????" +????????????????????????????????? | | ??????????? #????????????????????????????????? | | ??????????? #????????????????????????????????? | | ???????????? #????????????????????????????????? | | ????????????? ?????????????????????????????????? | | ?????????????????????????????????????????????????? | | ?????????????????????????????????????????????????? | +----------------------------------------------------+ Best States ------------- Heat Dissipation 92 Coolant Potential 80 Energy Generation 16 Energy Capacity 290 Matter Stores 300 Matter Capacity 300 Sight Range 16 Terrain Scan Range 14 Terrain Scan Density 10 Armor Coverage 225 Propulsion Shielding 66 Evasion (%) 50 Target Analysis 5 Core Analysis 6 Recoil Reduction 4 Kinecelleration 40 Offensive Hacking 24 Item Schematics ----------------- None Robot Schematics ------------------ None Fabricated ------------ Nothing Alien Tech Used ----------------- None Achievements -------------- None Challenges ------------ None Game ------ Seed CentriumSeismicMagmablaster Manual? 0 Play Time 01:09:56 Cumulative 299.5 hours Start 2024.04.30 @ 08:07:50 End 2024.04.30 @ 09:14:33 Sessions 1 Manual Loads 0 Difficulty Rogue Special Mode None Game No. 222 Rogue 222 Adventurer 0 Explorer 0 Win Type - Total 11 Types 7/0/3/1/0/0/0/0/0 Lore% 79 Gallery% 85 Achievement% 72 Wizard Run 0 Options --------- Layout 2 ASCII 1 Keyboard 0 Movement Mouse Keybinds 0 Fullscreen 2 Font 24/Smallcaps Map View 50x44 Zoom Use 0% Tactical HUD 1 Map Filters NONE Filters NONE Steam 1 RUN: 586cae89-3c2b-46d6-b2e6-be4f82d5c078